fUST/lending_fUST_20250803
["ID","MTS","AMOUNT","RATE_DAILY","PERIOD"]
[376904961,1754158247986,-460.0,0.00026849,10]
[376904962,1754158247997,-1502.26,0.00026849,10]
[376904963,1754158248007,-460.0,0.00026849,10]
[376904964,1754158248017,-1502.26,0.00026849,10]
[376904965,1754158248027,-460.0,0.00026849,10]
[376904966,1754158248038,-460.0,0.00026849,10]
[376904967,1754158248048,-460.0,0.00026849,10]
[376904968,1754158248058,-460.0,0.00026849,10]
[376904969,1754158248070,-460.0,0.00026849,10]
[376904970,1754158248083,-460.0,0.00026849,10]
[376904971,1754158248093,-1502.26,0.00026849,10]
[376904972,1754158248104,-171.14,0.00026849,10]
[376904973,1754158248115,-1502.26,0.00026849,10]
[376904974,1754158248125,-1502.26,0.00026849,10]
[376904975,1754158248136,-1502.26,0.00026849,10]
[376904976,1754158248147,-1502.26,0.00026849,10]
[376904977,1754158248161,-460.0,0.00026849,10]
[376904978,1754158248171,-460.0,0.00026849,10]
[376904979,1754158248183,-460.0,0.00026849,10]
[376904980,1754158248193,-460.0,0.00026849,10]
[376904981,1754158248203,-1502.26,0.00026849,10]
[376904982,1754158248213,-353.53861233,0.00026849,10]
[376904983,1754158248224,-382.90107045,0.00026849,10]
[376904984,1754158248234,-1502.26,0.00026849,10]
[376904985,1754158248245,-1502.26,0.00026849,10]
[376904986,1754158248257,-460.0,0.00026849,10]
[376904987,1754158248268,-460.0,0.00026849,10]
[376904988,1754158248279,-460.0,0.00026849,10]
[376904989,1754158248290,-1502.26,0.00026849,10]
[376904990,1754158248300,-460.0,0.00026849,10]
[376904991,1754158248309,-1502.26,0.00026849,10]
[376904992,1754158248319,-1502.26,0.00026849,10]
[376904993,1754158248328,-1502.26,0.00026849,10]
[376904994,1754158248339,-1205.55,0.00026849,10]
[376904995,1754158248348,-1502.26,0.00026849,10]
[376904996,1754158248357,-1205.55,0.00026849,10]
[376904997,1754158248367,-1502.26,0.00026849,10]
[376904998,1754158248377,-151.0,0.00026849,10]
[376904999,1754158248386,-1205.55,0.00026849,10]
[376905000,1754158248395,-1502.26,0.00026849,10]
[376905001,1754158248408,-1502.26,0.00026849,10]
[376905002,1754158248417,-1205.55,0.00026849,10]
[376905003,1754158248427,-1502.26,0.00026849,10]
[376905004,1754158248437,-1205.55,0.00026849,10]
[376905005,1754158248447,-1205.55,0.00026849,10]
[376905006,1754158248456,-1502.26,0.00026849,10]
[376905007,1754158248466,-1502.26,0.00026849,10]
[376905008,1754158248477,-1205.55,0.00026849,10]
[376905009,1754158248486,-1502.26,0.00026849,10]
[376905010,1754158248496,-1205.55,0.00026849,10]
[376905011,1754158248505,-1205.55,0.00026849,10]
[376905012,1754158248514,-1502.26,0.00026849,10]
[376905013,1754158248524,-1205.55,0.00026849,10]
[376905014,1754158248534,-1502.33724582,0.00026849,10]
[376905015,1754158248543,-1205.55,0.00026849,10]
[376905016,1754158248553,-151.0,0.00026849,10]
[376905017,1754158248562,-1205.55,0.00026849,10]
[376905018,1754158248572,-1205.55,0.00026849,10]
[376905019,1754158248768,-460.0,0.00026849,10]
[376905020,1754158248778,-1205.55,0.00026849,10]
[376905021,1754158248788,-460.0,0.00026849,10]
[376905022,1754158248798,-460.0,0.00026849,10]
[376905023,1754158248808,-1205.55,0.00026849,10]
[376905024,1754158248817,-460.0,0.00026849,10]
[376905025,1754158248826,-460.0,0.00026849,10]
[376905026,1754158248836,-1205.55,0.00026849,10]
[376905027,1754158248845,-460.0,0.00026849,10]
[376905028,1754158248854,-460.0,0.00026849,10]
[376905029,1754158248864,-460.0,0.00026849,10]
[376905030,1754158248873,-460.0,0.00026849,10]
[376905031,1754158248883,-1205.55,0.00026849,10]
[376905032,1754158248892,-460.0,0.00026849,10]
[376905033,1754158248904,-460.0,0.00026849,10]
[376905034,1754158248913,-151.0,0.00026849,10]
[376905035,1754158248923,-1205.55,0.00026849,10]
[376905036,1754158248932,-460.0,0.00026849,10]
[376905037,1754158248942,-1205.55,0.00026849,10]
[376905038,1754158248951,-460.0,0.00026849,10]
[376905039,1754158248961,-1205.55,0.00026849,10]
[376905040,1754158248972,-1205.55,0.00026849,10]
[376905041,1754158248981,-460.0,0.00026849,10]
[376905042,1754158248991,-460.0,0.00026849,10]
[376905043,1754158249000,-1205.55,0.00026849,10]
[376905044,1754158249009,-460.0,0.00026849,10]
[376905045,1754158249019,-1205.55,0.00026849,10]
[376905046,1754158249028,-460.0,0.00026849,10]
[376905047,1754158249038,-404.63081435,0.00026849,10]
[376905048,1754158249047,-460.0,0.00026849,10]
[376905049,1754158249057,-1205.61837788,0.00026849,10]
[376905050,1754158249066,-460.0,0.00026849,10]
[376905051,1754158249081,-460.0,0.00026849,10]
[376905052,1754158249092,-460.0,0.00026849,10]
[376905053,1754158249102,-460.0,0.00026849,10]
[376905054,1754158249113,-460.0,0.00026849,10]
[376905055,1754158249124,-460.0,0.00026849,10]
[376905056,1754158249133,-460.0,0.00026849,10]
[376905057,1754158249143,-460.0,0.00026849,10]
[376905058,1754158249156,-460.0,0.00026849,10]
[376905059,1754158249166,-500.0,0.00026849,2]
[376905060,1754158249176,-460.0,0.00026849,10]
[376905061,1754158249186,-460.0,0.00026849,10]
[376905062,1754158249195,-460.0,0.00026849,10]
[376905063,1754158249205,-460.0,0.00026849,10]
[376905064,1754158249215,-460.0,0.00026849,10]
[376905065,1754158249225,-460.0,0.00026849,10]
[376905066,1754158249235,-460.0,0.00026849,10]
[376905067,1754158249245,-460.0,0.00026849,10]
[376905068,1754158249255,-460.0,0.00026849,10]
[376905069,1754158249264,-460.0,0.00026849,10]
[376905070,1754158249274,-460.0,0.00026849,10]
[376905071,1754158249283,-460.0,0.00026849,10]
[376905072,1754158249292,-151.0,0.00026849,10]
[376905073,1754158249302,-460.0,0.00026849,10]
[376905074,1754158249311,-443.72,0.00026849,10]
[376905075,1754158249320,-460.0,0.00026849,10]
[376905076,1754158249330,-309.29,0.00026849,10]
[376905077,1754158249340,-460.0,0.00026849,10]
[376905078,1754158249349,-460.0,0.00026849,10]
[376905079,1754158249358,-272.3,0.00026849,10]
[376905080,1754158249368,-460.0,0.00026849,10]
[376905081,1754158249378,-460.0,0.00026849,10]
[376905082,1754158249389,-460.0,0.00026849,10]
[376905083,1754158249405,-233.33214494,0.00026849,10]
[376905084,1754158249415,-460.0,0.00026849,10]
[376905085,1754158249429,-460.0,0.00026849,10]
[376905086,1754158249440,-460.0,0.00026849,10]
[376905087,1754158249449,-460.0,0.00026849,10]
[376905088,1754158249459,-460.0,0.00026849,10]
[376905089,1754158249469,-460.0,0.00026849,10]
[376905090,1754158249478,-460.0,0.00026849,10]
[376905091,1754158249488,-460.0,0.00026849,10]
[376905092,1754158249497,-460.0,0.00026849,10]
[376905093,1754158249507,-460.0,0.00026849,10]
[376905094,1754158249518,-460.0,0.00026849,10]
[376905095,1754158249527,-569.41,0.00026849,10]
[376905096,1754158249537,-460.0,0.00026849,10]
[376905097,1754158249546,-465.31,0.00026849,10]
[376905098,1754158249556,-460.0,0.00026849,10]
[376905099,1754158249565,-460.0,0.00026849,10]
[376905100,1754158249575,-460.0,0.00026849,10]
[376905101,1754158249584,-460.0,0.00026849,10]
[376905102,1754158249594,-460.0,0.00026849,10]
[376905103,1754158249603,-460.0,0.00026849,10]
[376905104,1754158249612,-460.0,0.00026849,10]
[376905105,1754158249622,-460.0,0.00026849,10]
[376905106,1754158249632,-460.0,0.00026849,10]
[376905107,1754158249641,-460.0,0.00026849,10]
[376905108,1754158249650,-460.0,0.00026849,10]
[376905109,1754158249663,-460.0,0.00026849,10]
[376905110,1754158249672,-460.0,0.00026849,10]
[376905111,1754158249682,-460.0,0.00026849,10]
[376905112,1754158249692,-460.0,0.00026849,10]
[376905113,1754158249701,-460.0,0.00026849,10]
[376905114,1754158249710,-460.0,0.00026849,10]
[376905115,1754158249719,-460.0,0.00026849,10]
[376905116,1754158249729,-460.0,0.00026849,10]
[376905117,1754158249738,-460.0,0.00026849,10]
[376905118,1754158249747,-460.0,0.00026849,10]
[376905119,1754158249757,-460.0,0.00026849,10]
[376905120,1754158249766,-460.0,0.00026849,10]
[376905121,1754158249776,-460.0,0.00026849,10]
[376905122,1754158249785,-460.0,0.00026849,10]
[376905123,1754158249795,-460.0,0.00026849,10]
[376905124,1754158249805,-460.0,0.00026849,10]
[376905125,1754158249814,-460.0,0.00026849,10]
[376905126,1754158249823,-460.0,0.00026849,10]
[376905127,1754158249832,-460.0,0.00026849,10]
[376905128,1754158249841,-460.0,0.00026849,10]
[376905129,1754158249852,-460.0,0.00026849,10]
[376905130,1754158249861,-460.0,0.00026849,10]
[376905131,1754158249871,-460.0,0.00026849,10]
[376905132,1754158249882,-357.7,0.00026849,10]
[376905133,1754158249891,-460.0,0.00026849,10]
[376905134,1754158249901,-460.0,0.00026849,10]
[376905135,1754158249915,-460.0,0.00026849,10]
[376905136,1754158249924,-460.0,0.00026849,10]
[376905137,1754158249934,-460.0,0.00026849,10]
[376905138,1754158249943,-460.0,0.00026849,10]
[376905139,1754158249952,-460.0,0.00026849,10]
[376905140,1754158249961,-460.0,0.00026849,10]
[376905141,1754158249970,-460.0,0.00026849,10]
[376905142,1754158249979,-460.0,0.00026849,10]
[376905143,1754158249988,-593.08,0.00026849,10]
[376905144,1754158249997,-460.0,0.00026849,10]
[376905145,1754158250007,-460.0,0.00026849,10]
[376905146,1754158250016,-460.0,0.00026849,10]
[376905147,1754158250026,-460.0,0.00026849,10]
[376905148,1754158250035,-320.84,0.00026849,10]
[376905149,1754158250044,-460.0,0.00026849,10]
[376905150,1754158250053,-460.0,0.00026849,10]
[376905151,1754158250062,-460.0,0.00026849,10]
[376905152,1754158250074,-460.0,0.00026849,10]
[376905153,1754158250083,-460.0,0.00026849,10]
[376905154,1754158250092,-460.0,0.00026849,10]
[376905155,1754158250101,-460.0,0.00026849,10]
[376905156,1754158250110,-1756.0,0.00026849,3]
[376905157,1754158250120,-460.0,0.00026849,10]
[376905158,1754158250129,-460.0,0.00026849,10]
[376905159,1754158250138,-460.0,0.00026849,10]
[376905160,1754158250149,-460.0,0.00026849,10]
[376905161,1754158250159,-460.0,0.00026849,10]
[376905162,1754158250169,-460.0,0.00026849,10]
[376905163,1754158250178,-460.0,0.00026849,10]
[376905164,1754158250189,-460.0,0.00026849,10]
[376905165,1754158250198,-460.0,0.00026849,10]
[376905166,1754158250207,-1756.0,0.00026849,3]
[376905167,1754158250217,-460.0,0.00026849,10]
[376905168,1754158250228,-1756.0,0.00026849,3]
[376905169,1754158250238,-550.48,0.00026849,10]
[376905170,1754158250247,-1756.0,0.00026849,3]
[376905171,1754158250256,-460.0,0.00026849,10]
[376905172,1754158250266,-1756.0,0.00026849,3]
[376905173,1754158250276,-460.0,0.00026849,10]
[376905174,1754158250285,-460.0,0.00026849,10]
[376905175,1754158250295,-460.0,0.00026849,10]
[376905176,1754158250305,-460.0,0.00026849,10]
[376905177,1754158250314,-460.0,0.00026849,10]
[376905178,1754158250324,-1756.0,0.00026849,3]
[376905179,1754158250334,-405.48,0.00026849,10]
[376905180,1754158250344,-460.0,0.00026849,10]
[376905181,1754158250353,-460.0,0.00026849,10]
[376905182,1754158250362,-460.0,0.00026849,10]
[376905183,1754158250371,-460.0,0.00026849,10]
[376905184,1754158250380,-460.0,0.00026849,10]
[376905185,1754158250390,-460.0,0.00026849,10]
[376905186,1754158250399,-1756.0,0.00026849,3]
[376905187,1754158250410,-579.06,0.00026849,10]
[376905188,1754158250419,-195.32635102,0.00026849,3]
[376905189,1754158250428,-460.0,0.00026849,10]
[376905190,1754158250437,-460.0,0.00026849,10]
[376905191,1754158250446,-460.0,0.00026849,10]
[376905192,1754158250455,-460.0,0.00026849,10]
[376905193,1754158250464,-460.0,0.00026849,10]
[376905194,1754158250473,-460.0,0.00026849,10]
[376905195,1754158250482,-245.22,0.00026849,10]
[376905196,1754158250491,-460.0,0.00026849,10]
[376905197,1754158250501,-10643.87271077,0.00026849,2]
[376905198,1754158250510,-216.27517063,0.0002685,10]
[376905199,1754158250519,-267.0,0.00026861,2]
[376905200,1754158250528,-417.75222173,0.00026873,2]
[376905201,1754158250538,-292.68202547,0.00026873,2]
[376905202,1754158250547,-509.34255468,0.00026873,2]
[376905203,1754158250557,-500.0,0.00026873,2]
[376905204,1754158250567,-151.0,0.00026873,7]
[376905205,1754158250576,-151.0,0.00026873,7]
[376905206,1754158250585,-32932.34,0.000269,2]
[376905207,1754158250594,-156.0,0.000269,2]
[376905208,1754158250604,-177.24,0.000269,4]
[376905209,1754158250614,-164.06,0.000269,4]
[376905210,1754158250623,-8181.8,0.000269,7]
[376905211,1754158250632,-2360.37,0.000269,7]
[376905212,1754158250642,-1059.24,0.000269,7]
[376905213,1754158250651,-151.0,0.000269,7]
[376905214,1754158250667,-151.0,0.000269,7]
[376905215,1754158250676,-151.0,0.000269,7]
[376905216,1754158250685,-3582.39533297,0.000269,2]
[376905217,1754158250694,-294.32806981,0.000269,2]
[376905218,1754158250704,-600.0,0.00026973,2]
[376905219,1754158250713,-501.22848922,0.00026973,2]
[376905220,1754158250722,-154.17231526,0.00026973,2]
[376905221,1754158250731,-500.0,0.00026973,2]
[376905222,1754158250740,-501.02742172,0.00026973,2]
[376905223,1754158250750,-500.0,0.00026973,2]
[376905224,1754158250760,-501.93875642,0.00026973,2]
[376905225,1754158250769,-500.36574572,0.00026973,2]
[376905226,1754158250779,-500.0,0.00026973,2]
[376905227,1754158250788,-500.0,0.00026973,2]
[376905228,1754158250798,-500.0,0.00026973,2]
[376905229,1754158250808,-500.0,0.00026973,2]
[376905230,1754158250817,-500.0,0.00026973,2]
[376905231,1754158250827,-500.44982833,0.00026973,2]
[376905232,1754158250836,-500.91526166,0.00026973,2]
[376905233,1754158250846,-500.0,0.00026973,2]
[376905234,1754158250855,-520.37902995,0.00026973,2]
[376905235,1754158250864,-500.0,0.00026973,2]
[376905236,1754158250873,-501.6212616,0.00026973,2]
[376905237,1754158250882,-500.0,0.00026973,2]
[376905238,1754158250892,-501.47711692,0.00026973,2]
[376905239,1754158250901,-501.36113289,0.00026973,2]
[376905240,1754158250916,-500.0,0.00026973,2]
[376905241,1754158250925,-444.29271676,0.00026973,2]
[376905242,1754158250934,-502.18917638,0.00026973,2]
[376905243,1754158250943,-503.59060838,0.00026973,2]
[376905244,1754158250953,-500.0,0.00026973,2]
[376905245,1754158250962,-500.0,0.00026973,2]
[376905246,1754158250972,-500.0,0.00026973,2]
[376905247,1754158250981,-500.0,0.00026973,2]
[376905248,1754158250990,-502.08470282,0.00026973,2]
[376905249,1754158251000,-500.0,0.00026973,2]
[376905250,1754158251010,-173.22468161,0.00026973,2]
[376905251,1754158251020,-500.0,0.00026973,2]
[376905252,1754158251029,-500.0,0.00026973,2]
[376905253,1754158251040,-502.72224349,0.00026973,2]
[376905254,1754158251049,-500.0,0.00026973,2]
[376905255,1754158251058,-500.78757145,0.00026973,2]
[376905256,1754158251067,-500.0,0.00026973,2]
[376905257,1754158251080,-189.10768309,0.00026973,2]
[376905258,1754158251089,-500.0,0.00026973,2]
[376905259,1754158251098,-503.10716674,0.00026973,2]
[376905260,1754158251107,-151.0,0.00026973,7]
[376905261,1754158251116,-184.7566,0.00026973,7]
[376905262,1754158251124,-281.400225,0.00026973,7]
[376905263,1754158251133,-281.400225,0.00026973,7]
[376905264,1754158251142,-160.0,0.00026981,3]
[376905265,1754158251151,-151.0,0.00026981,7]
[376905266,1754158251163,-151.0,0.00026981,7]
[376905267,1754158251172,-337.129376,0.00026981,7]
[376905268,1754158251181,-337.129376,0.00026981,7]
[376905269,1754158251190,-325.0,0.00026996,3]
[376905270,1754158251199,-325.0,0.00026996,3]
[376905271,1754158251208,-475.63805013,0.00026996,3]
[376905272,1754158251217,-1756.0,0.00026996,3]
[376905273,1754158251226,-1756.0,0.00026996,3]
[376905274,1754158251235,-1756.0,0.00026996,3]
[376905275,1754158251245,-1756.0,0.00026996,3]
[376905276,1754158251254,-1756.0,0.00026996,3]
[376905277,1754158251264,-1756.0,0.00026996,3]
[376905278,1754158251273,-1756.0,0.00026996,3]
[376905279,1754158251282,-1756.0,0.00026996,3]
[376905280,1754158251291,-1756.0,0.00026996,3]
[376905281,1754158251300,-750.62049848,0.00026996,3]
[376905282,1754158251309,-1756.0,0.00026996,3]
[376905283,1754158251318,-325.0,0.00026996,3]
[376905284,1754158251327,-325.0,0.00026996,3]
[376905285,1754158251336,-325.0,0.00026996,3]
[376905286,1754158251345,-325.0,0.00026996,3]
[376905287,1754158251354,-325.0,0.00026996,3]
[376905288,1754158251363,-325.0,0.00026996,3]
[376905289,1754158251373,-325.0,0.00026996,3]
[376905290,1754158251382,-325.0,0.00026996,3]
[376905291,1754158251391,-325.0,0.00026996,3]
[376905292,1754158251401,-325.0,0.00026996,3]
[376905293,1754158251413,-325.0,0.00026996,3]
[376905294,1754158251423,-325.0,0.00026996,3]
[376905295,1754158251432,-325.0,0.00026996,3]
[376905296,1754158251441,-325.0,0.00026996,3]
[376905297,1754158251451,-325.0,0.00026996,3]
[376905298,1754158251460,-325.0,0.00026996,3]
[376905299,1754158251469,-341.65471325,0.00026996,3]
[376905300,1754158251479,-325.0,0.00026996,3]
[376905301,1754158251488,-325.0,0.00026996,3]
[376905302,1754158251497,-325.0,0.00026996,3]
[376905303,1754158251506,-325.0,0.00026996,3]
[376905304,1754158251515,-291.0,0.00026996,3]
[376905305,1754158251525,-151.0,0.00026996,7]
[376905306,1754158251534,-151.0,0.00026996,7]
[376905307,1754158251543,-3531.14658168,0.00027,2]
[376905308,1754158405410,241.0,0.00027788,120]
[376905309,1754158605412,5000.0,0.00022147,2]
[376905310,1754158605591,4545.21610492,0.00019178,2]
[376905312,1754158919767,165.88818,0.00013699,2]
[376905314,1754159151176,2427.31271347,0.00022147,2]
[376905315,1754159151713,-500.0,0.00023895,2]
[376905316,1754159151732,-666.0,0.00023906,2]
[376905317,1754159151753,-160.0,0.00024011,2]
[376905318,1754159151774,-582.32262686,0.00024012,2]
[376905319,1754159218096,-163.27479384,0.00023726,2]
[376905320,1754159251284,-125.79245116,0.00023726,2]
[376905321,1754159251308,-228.271976,0.0002389,2]
[376905322,1754159251329,-500.0,0.00023895,2]
[376905323,1754159251351,-307.20505676,0.00024012,2]
[376905324,1754159294061,331.89566073,0.00019205,5]
[376905325,1754159310487,2039.69336636,0.0002,2]
[376905326,1754159317692,12884.461115,0.0002,2]
[376905328,1754159321719,19678.68718908,0.0002,2]
[376905384,1754159432737,-1363.0635731,0.00023888,2]
[376905385,1754159432747,-997.0,0.00024013,2]
[376905386,1754159432756,-154.1053478,0.00024013,2]
[376905387,1754159432793,-145.8946522,0.00024013,2]
[376905390,1754159432804,-310.0,0.00024013,2]
[376905392,1754159432815,-16290.75555161,0.00024014,2]
[376905435,1754159438722,-8609.24444839,0.00024014,2]
[376905437,1754159438732,-215.25417868,0.00024558,2]
[376905439,1754159438741,-1085.93977996,0.00024775,2]
[376905441,1754159438751,-165.25271147,0.00024873,2]
[376905443,1754159438760,-165.88818,0.00024907,2]
[376905445,1754159438770,-363.552,0.00024907,8]
[376905447,1754159438780,-500.0,0.00024973,2]
[376905449,1754159438789,-485.29526641,0.00024973,2]
[376905451,1754159438799,-500.0,0.00024973,2]
[376905453,1754159438808,-500.0,0.00024973,2]
[376905455,1754159438817,-500.0,0.00024973,2]
[376905457,1754159438828,-501.1827514,0.00024973,2]
[376905459,1754159438837,-500.0,0.00024973,2]
[376905461,1754159438847,-500.0,0.00024973,2]
[376905463,1754159438856,-500.0,0.00024999,2]
[376905465,1754159438867,-500.0,0.00024999,2]
[376905467,1754159438876,-500.0,0.00024999,2]
[376905469,1754159438885,-500.0,0.00024999,2]
[376905471,1754159438895,-622.84427185,0.00024999,2]
[376905473,1754159438904,-500.0,0.00024999,2]
[376905475,1754159438913,-500.0,0.00024999,2]
[376905477,1754159438922,-500.0,0.00024999,2]
[376905479,1754159438931,-500.0,0.00024999,2]
[376905481,1754159438941,-500.0,0.00024999,2]
[376905483,1754159438950,-500.0,0.00024999,2]
[376905485,1754159438959,-500.0,0.00024999,2]
[376905487,1754159438970,-500.0,0.00024999,2]
[376905489,1754159438979,-500.0,0.00024999,2]
[376905491,1754159438989,-829.46280564,0.00024999,2]
[376905493,1754159439001,-7764.56719436,0.00024999,2]
[376905495,1754159439010,-310.92194149,0.00025,2]
[376905498,1754159439022,-56324.99999999,0.00025,2]
[376905500,1754159439034,-3400.0,0.00025,2]
[376905503,1754159439049,-8288.00757897,0.00025,2]
[376905504,1754159439059,-5126.47332266,0.00025,10]
[376905506,1754159439068,-162.96,0.0002505,7]
[376905508,1754159439081,-210.2,0.00025052,6]
[376905510,1754159439090,-178.563763,0.000251,2]
[376905512,1754159439100,-162.96,0.0002515,7]
[376905514,1754159439109,-200.0,0.00025214,15]
[376905516,1754159439118,-300.0,0.00025214,15]
[376905518,1754159439128,-162.96,0.0002525,7]
[376905520,1754159439137,-210.2,0.0002527,6]
[376905522,1754159439146,-162.96,0.0002535,7]
[376905524,1754159439155,-165.25271143,0.00025439,2]
[376905526,1754159439164,-162.96,0.0002545,7]
[376905528,1754159439173,-210.2,0.00025489,6]
[376905530,1754159439183,-1000.0,0.00025521,2]
[376905532,1754159439195,-512.34,0.00025544,2]
[376905534,1754159439204,-162.99,0.0002555,7]
[376905536,1754159439213,-210.2,0.00025707,6]
[376905538,1754159439222,-500.0,0.00025925,6]
[376905540,1754159439231,-210.2,0.00025925,6]
[376905542,1754159439241,-165.25271143,0.00026005,2]
[376905544,1754159439250,-1000.0,0.00026068,2]
[376905546,1754159439259,-500.0,0.00026087,2]
[376905548,1754159439268,-210.2,0.00026144,6]
[376905550,1754159439277,-153.70730798,0.00026189,2]
[376905551,1754159439286,-500.0,0.00026199,6]
[376905553,1754159439295,-210.2,0.00026362,7]
[376905555,1754159439305,-8594.03,0.00026369,4]
[376905557,1754159439315,-165.25271143,0.00026571,2]
[376905559,1754159439326,-210.2,0.00026581,7]
[376905561,1754159439335,-407.0,0.00026691,2]
[376905563,1754159439344,-2172.0,0.00026691,2]
[376905566,1754159439354,-396.85198866,0.00026749,2]
[376905567,1754159439363,-1102.15461585,0.00026749,2]
[376905569,1754159439372,-396.85198864,0.00026787,2]
[376905571,1754159439381,-179.06,0.0002679,3]
[376905573,1754159439391,-537.22,0.0002679,3]
[376905575,1754159439400,-210.2,0.00026799,7]
[376905577,1754159439409,-83741.0,0.000268,7]
[376905579,1754159439418,-953.32,0.000268,7]
[376905581,1754159439428,-396.85198864,0.00026825,2]
[376905583,1754159439437,-1102.15461585,0.00026825,2]
[376905585,1754159439447,-604.91027534,0.00026848,2]
[376905587,1754159439459,-1394.94638462,0.00026849,2]
[376905589,1754159439468,-460.0,0.00026849,10]
[376905591,1754159439477,-460.0,0.00026849,10]
[376905593,1754159439487,-500.0,0.00026849,10]
[376905595,1754159439499,-500.0,0.00026849,10]
[376905597,1754159439509,-424.46815538,0.00026849,10]
[376905599,1754159439519,-500.0,0.00026849,10]
[376905601,1754159439528,-500.0,0.00026849,10]
[376905603,1754159439537,-500.0,0.00026849,10]
[376905605,1754159439547,-500.0,0.00026849,10]
[376905607,1754159439556,-500.0,0.00026849,10]
[376905609,1754159439566,-500.0,0.00026849,10]
[376905611,1754159439577,-500.0,0.00026849,10]
[376905613,1754159439586,-460.0,0.00026849,10]
[376905615,1754159439595,-460.0,0.00026849,10]
[376905617,1754159439604,-460.0,0.00026849,10]
[376905619,1754159439613,-460.0,0.00026849,10]
[376905621,1754159439623,-460.0,0.00026849,10]
[376905623,1754159439633,-460.0,0.00026849,10]
[376905625,1754159439642,-460.0,0.00026849,10]
[376905626,1754159439652,-460.0,0.00026849,10]
[376905628,1754159439660,-460.0,0.00026849,10]
[376905630,1754159439670,-460.0,0.00026849,10]
[376905632,1754159439679,-460.0,0.00026849,10]
[376905634,1754159439688,-460.0,0.00026849,10]
[376905636,1754159439698,-460.0,0.00026849,10]
[376905638,1754159439707,-460.0,0.00026849,10]
[376905640,1754159439716,-460.0,0.00026849,10]
[376905642,1754159439725,-460.0,0.00026849,10]
[376905644,1754159439734,-460.0,0.00026849,10]
[376905646,1754159439743,-460.0,0.00026849,10]
[376905648,1754159439753,-460.0,0.00026849,10]
[376905650,1754159439762,-460.0,0.00026849,10]
[376905652,1754159439771,-460.0,0.00026849,10]
[376905654,1754159439781,-295.71078926,0.00026849,10]
[376905656,1754159439791,-460.0,0.00026849,10]
[376905658,1754159439800,-460.0,0.00026849,10]
[376905660,1754159439810,-511.40957941,0.00026849,10]
[376905662,1754159439821,-460.0,0.00026849,10]
[376905664,1754159439831,-460.0,0.00026849,10]
[376905666,1754159439840,-460.0,0.00026849,10]
[376905668,1754159439849,-460.0,0.00026849,10]
[376905670,1754159439858,-484.5166756,0.00026849,10]
[376905672,1754159439868,-460.0,0.00026849,10]
[376905674,1754159439877,-460.0,0.00026849,10]
[376905676,1754159439887,-460.0,0.00026849,10]
[376905678,1754159439898,-460.0,0.00026849,10]
[376905680,1754159439907,-460.0,0.00026849,10]
[376905682,1754159439917,-489.66,0.00026849,10]
[376905684,1754159439926,-460.0,0.00026849,10]
[376905686,1754159439935,-460.0,0.00026849,10]
[376905688,1754159439944,-460.80371312,0.00026849,10]
[376905690,1754159439953,-460.0,0.00026849,10]